bitfinex/quotes_BTCUSD_20250412
["timestamp","ask_amount","ask_price","bid_price","bid_amount"]
[1744432391103,0.182029,83127.0,83123.0,0.05964165]
[1744432391390,0.012029,83132.0,83128.0,0.012029]
[1744432391585,0.17,83132.0,83126.0,0.012029]
[1744432391789,0.17,83132.0,83128.0,0.012029]
[1744432391986,0.410581,83132.0,83128.0,0.012029]
[1744432392441,0.17,83132.0,83128.0,0.012029]
[1744432392645,0.17,83132.0,83126.0,0.012029]
[1744432392646,0.012029,83130.0,83126.0,0.012029]
[1744432392860,0.012029,83130.0,83126.0,0.252627]
[1744432393157,0.192029,83130.0,83127.0,0.012029]
[1744432393300,0.240589,83129.0,83123.0,0.00131165]
[1744432393511,0.240604,83124.0,83123.0,0.00131165]
[1744432393713,0.51144554,83124.0,83123.0,0.00131165]
[1744432393912,0.15,83124.0,83123.0,0.00131165]
[1744432395187,0.012029,83126.0,83123.0,0.00131165]
[1744432395466,0.202029,83126.0,83123.0,0.00131165]
[1744432395674,0.240604,83124.0,83123.0,0.00131165]
[1744432395852,0.52144554,83124.0,83123.0,0.00131165]
[1744432395996,1.06304554,83124.0,83123.0,0.00131165]
[1744432398226,1.06404554,83124.0,83123.0,0.00131165]
[1744432398630,1.06304554,83124.0,83123.0,0.00131165]
[1744432400656,1.06404554,83124.0,83123.0,0.00131165]
[1744432401090,1.16404554,83124.0,83123.0,0.00131165]
[1744432401959,1.16404554,83124.0,83123.0,6.5e-07]
[1744432402127,0.681624,83117.0,83116.0,8.5e-07]
[1744432402329,1.00886554,83117.0,83116.0,8.5e-07]
[1744432402533,1.12959402,83117.0,83116.0,8.5e-07]
[1744432404362,0.86246554,83117.0,83116.0,8.5e-07]
[1744432404506,0.96246554,83117.0,83116.0,8.5e-07]
[1744432405661,0.86246554,83117.0,83116.0,8.5e-07]
[1744432406026,0.96246554,83117.0,83116.0,8.5e-07]
[1744432406455,0.86246554,83117.0,83116.0,8.5e-07]
[1744432406656,0.96246554,83117.0,83116.0,8.5e-07]
[1744432406849,0.86246554,83117.0,83116.0,8.5e-07]
[1744432407267,1.22433487,83117.0,83116.0,8.5e-07]
[1744432407462,0.441,83114.0,83113.0,5e-08]
[1744432407618,0.7655065,83114.0,83113.0,5e-08]
[1744432407819,0.68167,83101.0,83100.0,6e-07]
[1744432408027,1.21181154,83101.0,83100.0,6e-07]
[1744432408284,1.36620864,83101.0,83100.0,6e-07]
[1744432409177,1.50734949,83101.0,83100.0,6e-07]
[1744432409353,1.37208016,83101.0,83100.0,6e-07]
[1744432409562,1.33841154,83101.0,83100.0,6e-07]
[1744432409749,1.21181154,83101.0,83100.0,6e-07]
[1744432410156,0.681688,83095.0,83087.0,0.0008438]
[1744432410382,0.96252954,83095.0,83087.0,0.0008438]
[1744432410560,1.08325802,83095.0,83087.0,0.0008438]
[1744432411059,1.20985802,83095.0,83087.0,0.0008438]
[1744432411418,0.681708,83088.0,83087.0,2e-07]
[1744432411677,2.21358144,83088.0,83087.0,0.00014068]
[1744432412798,2.35472229,83088.0,83087.0,6.8e-07]
[1744432413026,0.681723,83083.0,83082.0,0.00070561]
[1744432413274,1.10370539,83083.0,83082.0,0.00080706]
[1744432413942,0.681737,83078.0,83077.0,6.6e-07]
[1744432414122,1.18481854,83078.0,83077.0,0.00014127]
[1744432414390,1.30554702,83078.0,83077.0,0.00014127]
[1744432414568,1.44668787,83078.0,83077.0,0.00014127]
[1744432414763,0.58214085,83074.0,83073.0,2.7e-07]
[1744432414938,0.58214085,83074.0,83037.0,0.0478]
[1744432414939,0.6805827,83062.0,83037.0,0.0478]
[1744432415138,0.96142424,83062.0,83061.0,0.00214064]
[1744432415303,1.03805101,83062.0,83061.0,0.00214064]
[1744432415523,0.96142424,83062.0,83061.0,0.00214064]
[1744432416929,1.38607983,83062.0,83061.0,6.4e-07]
[1744432417336,0.3406067,83054.0,83053.0,0.00080624]
[1744432417575,2.52147701,83054.0,83053.0,0.00080624]
[1744432418019,2.30304854,83054.0,83053.0,0.00080624]
[1744432419864,2.30304854,83054.0,83053.0,0.04950624]
[1744432420826,2.30304854,83054.0,83053.0,0.00080624]
[1744432425857,2.29756854,83054.0,83053.0,0.00080624]
[1744432426238,2.29856854,83054.0,83053.0,0.00080624]
[1744432426442,2.41929702,83054.0,83053.0,0.00080624]
[1744432427040,2.51809672,83054.0,83053.0,0.00080624]
[1744432428170,2.51709672,83054.0,83053.0,0.00080624]
[1744432428364,2.51809672,83054.0,83053.0,2.4e-07]
[1744432428787,2.64469672,83054.0,83053.0,2.4e-07]
[1744432428988,0.82175555,83051.0,83050.0,6.4e-07]
[1744432429203,0.581847,83040.0,83039.0,2.4e-07]
[1744432429431,0.87268854,83040.0,83039.0,0.0001409]
[1744432430844,0.97148824,83040.0,83039.0,0.0001409]
[1744432431051,1.09221672,83040.0,83039.0,0.0001409]
[1744432432027,0.87168854,83040.0,83039.0,0.0001409]
[1744432432854,1.06852854,83040.0,83039.0,0.0001409]
[1744432435793,1.06852854,83040.0,83039.0,0.0464409]
[1744432436449,0.87168854,83040.0,83039.0,0.0464409]
[1744432436649,0.72852854,83040.0,83039.0,0.0464409]
[1744432437953,0.84925702,83040.0,83039.0,0.0464409]
[1744432438182,0.72852854,83040.0,83039.0,0.0001409]
[1744432440153,0.53168854,83040.0,83039.0,0.0001409]
[1744432440406,0.72852854,83040.0,83039.0,0.0001409]
[1744432441353,0.53168854,83040.0,83039.0,0.0001409]
[1744432441833,0.410847,83040.0,83039.0,0.0001409]
[1744432446206,0.82096174,83040.0,83039.0,0.0001409]
[1744432447214,0.94180328,83040.0,83039.0,0.0001409]
[1744432449638,1.40253176,83040.0,83039.0,0.0001409]
[1744432449844,1.43729769,83040.0,83039.0,0.0001409]
[1744432450045,0.57966428,83034.0,83032.0,0.0008436]
[1744432450244,0.90458131,83033.0,83032.0,0.0008436]
[1744432450445,1.06458131,83033.0,83032.0,0.0008436]
[1744432451275,1.18530979,83033.0,83032.0,0.0008436]
[1744432451475,1.06458131,83033.0,83032.0,0.0008436]
[1744432453432,1.07345639,83033.0,83032.0,0.0008436]
[1744432453666,1.08525175,83033.0,83032.0,0.0008436]
[1744432454852,1.07637667,83033.0,83032.0,0.0008436]
[1744432455049,1.04261074,83033.0,83032.0,0.0008436]
[1744432455394,1.23377074,83033.0,83032.0,0.0008436]
[1744432455600,1.23377074,83033.0,83031.0,0.002]
[1744432455601,0.99000024,83032.0,83031.0,0.002]
[1744432455799,1.29084178,83032.0,83031.0,0.002]
[1744432456025,1.28994178,83032.0,83031.0,0.002]
[1744432456370,1.28994178,83032.0,83025.0,0.0124692]
[1744432456371,0.580888,83026.0,83025.0,0.0124692]
[1744432456665,0.91547646,83026.0,83025.0,0.0124692]
[1744432457434,0.2409,83022.0,83021.0,2e-07]
[1744432457633,0.6797047,83020.0,83019.0,4e-07]
[1744432457826,0.580946,83006.0,83005.0,0.0008466]
[1744432458040,1.48211778,83006.0,83005.0,0.0008466]
[1744432458249,1.48211778,83006.0,83005.0,0.00131575]
[1744432459174,1.48211778,83006.0,82988.0,0.05638005]
[1744432459175,0.240966,82999.0,82998.0,5.95e-06]
[1744432459319,0.53180754,82999.0,82998.0,5.95e-06]
[1744432461798,0.87180754,82999.0,82998.0,5.95e-06]
[1744432461982,1.06300754,82999.0,82998.0,5.95e-06]
[1744432463874,1.06300754,82999.0,82991.0,0.0204233]
[1744432463875,0.012049,82994.0,82991.0,0.0204233]
[1744432464167,0.12084154,82993.0,82991.0,0.0204233]
[1744432464374,0.40912429,82992.0,82991.0,0.0204233]
[1744432464700,0.70996583,82992.0,82991.0,0.0204233]
[1744432467934,0.90789785,82992.0,82991.0,0.0204233]
[1744432468869,1.24789785,82992.0,82991.0,0.0204233]
[1744432473622,1.24793785,82992.0,82991.0,0.0204233]
[1744432477153,1.24793785,82992.0,82991.0,0.02008599]
[1744432481417,0.00964724,82981.0,82978.0,0.0494]
[1744432481621,0.00964724,82981.0,82971.0,0.0474]
[1744432481622,0.581027,82978.0,82971.0,0.0474]
[1744432481761,0.87186854,82978.0,82971.0,0.0474]
[1744432482891,0.87186854,82978.0,82977.0,0.00089052]
[1744432484280,1.05222854,82978.0,82977.0,0.00089052]
[1744432485924,1.06148788,82978.0,82977.0,0.00089052]
[1744432487789,1.06152788,82978.0,82977.0,0.00089052]
[1744432489391,1.06152788,82978.0,82977.0,5.2e-07]
[1744432489392,1.16032758,82978.0,82977.0,5.2e-07]
[1744432490875,0.97992758,82978.0,82977.0,5.2e-07]
[1744432491219,1.30212169,82978.0,82977.0,5.2e-07]
[1744432492208,1.19406466,82978.0,82977.0,5.2e-07]
[1744432494758,1.19406466,82978.0,82969.0,0.0008442]
[1744432494759,0.58105,82970.0,82969.0,7.2e-07]
[1744432494974,0.581085,82958.0,82957.0,0.0004234]
[1744432495177,1.04232654,82958.0,82957.0,0.00047031]
[1744432497333,1.04232654,82958.0,82942.0,4.1e-07]
[1744432497334,0.23992395,82944.0,82942.0,4.1e-07]
[1744432497533,0.46084154,82943.0,82942.0,4.732e-05]
[1744432497772,0.18,82943.0,82942.0,4.732e-05]
[1744432499999,0.19210245,82943.0,82942.0,4.732e-05]
[1744432501596,0.18,82943.0,82942.0,0.04694732]
[1744432502001,0.18,82943.0,82942.0,0.04683768]
[1744432502197,0.18,82943.0,82942.0,0.28796968]
[1744432502397,0.012056,82946.0,82943.0,0.0012003]
[1744432502633,0.172056,82946.0,82943.0,0.0012003]
[1744432503213,0.16,82946.0,82943.0,0.2543833]
[1744432503530,0.16,82946.0,82944.0,0.0012003]
[1744432508324,0.241129,82943.0,82941.0,0.0028446]
[1744432508536,0.241129,82943.0,82941.0,0.00289151]
[1744432508537,0.401129,82943.0,82941.0,0.00289151]
[1744432508937,0.50987984,82942.0,82941.0,0.00289151]
[1744432509166,0.66987984,82942.0,82941.0,0.00289151]
[1744432510309,0.241181,82925.0,82924.0,0.05638005]
[1744432510454,1.08860933,82925.0,82924.0,0.05642696]
[1744432510654,0.96776779,82925.0,82924.0,0.05642696]
[1744432512600,0.78732779,82925.0,82924.0,0.05642696]
[1744432513181,0.54614679,82925.0,82924.0,4.691e-05]
[1744432513390,0.54614679,82925.0,82924.0,0.04914691]
[1744432515749,0.54614679,82925.0,82924.0,4.691e-05]
[1744432515966,0.66698833,82925.0,82924.0,4.691e-05]
[1744432517165,1.12771681,82925.0,82924.0,4.691e-05]
[1744432517363,1.00698833,82925.0,82924.0,4.691e-05]
[1744432522628,1.01914848,82925.0,82924.0,4.691e-05]
[1744432523075,1.19434848,82925.0,82924.0,4.691e-05]
[1744432525708,1.18218833,82925.0,82924.0,4.691e-05]
[1744432528210,1.00698833,82925.0,82924.0,4.691e-05]
[1744432528473,1.18222833,82925.0,82924.0,4.691e-05]
[1744432529975,1.30295681,82925.0,82924.0,4.691e-05]
[1744432530197,1.18222833,82925.0,82924.0,4.691e-05]
[1744432534365,0.01085747,82914.0,82911.0,0.002]
[1744432534551,0.34,82912.0,82911.0,0.00211322]
[1744432534726,0.64084154,82912.0,82911.0,0.00211322]
[1744432537743,0.18,82912.0,82911.0,0.00211322]
[1744432539287,0.30084154,82912.0,82911.0,0.00211322]
[1744432540127,0.68694142,82912.0,82911.0,0.00211322]
[1744432543058,0.68694142,82912.0,82911.0,0.00154449]
[1744432549918,0.30084154,82912.0,82911.0,0.00154449]
[1744432552560,0.76157002,82912.0,82911.0,0.00154449]
[1744432552782,0.7841609,82912.0,82911.0,0.00154449]
[1744432553286,0.6747279,82912.0,82911.0,0.00154449]
[1744432555368,0.70860476,82912.0,82911.0,0.00154449]
[1744432555910,0.6747279,82912.0,82911.0,0.00154449]
[1744432556151,0.65213702,82912.0,82911.0,0.00154449]
[1744432556306,0.8445936,82912.0,82911.0,0.00154449]
[1744432557494,0.96532208,82912.0,82911.0,0.00154449]
[1744432557695,0.8445936,82912.0,82911.0,0.00154449]
[1744432562369,0.6747136,82912.0,82911.0,0.00154449]
[1744432562575,0.5045936,82912.0,82911.0,0.00154449]
[1744432563212,0.48201702,82912.0,82911.0,0.00154449]
[1744432564068,0.5045846,82912.0,82911.0,0.00154449]
[1744432564270,0.21386306,82912.0,82911.0,0.00154449]
[1744432564696,0.21385109,82912.0,82911.0,0.00154449]
[1744432565444,0.21385109,82912.0,82911.0,0.04774479]
[1744432565685,0.20256758,82912.0,82911.0,0.04774479]
[1744432565854,0.18,82912.0,82911.0,0.04774479]
[1744432566531,0.18,82912.0,82911.0,0.06228564]
[1744432566736,0.012057,82938.0,82933.0,0.241156]
[1744432566919,0.012057,82938.0,82931.0,0.045]
[1744432566920,0.012057,82935.0,82931.0,0.286163]
[1744432567124,0.03460704,82934.0,82931.0,0.286163]
[1744432567337,0.19588206,82934.0,82931.0,0.286163]
[1744432567658,0.02255004,82933.0,82931.0,0.286163]
[1744432567889,0.17,82933.0,82932.0,0.0012003]
[1744432568435,0.19252117,82933.0,82932.0,0.0012003]
[1744432568838,0.18126081,82933.0,82932.0,0.0012003]
[1744432569082,0.18126081,82933.0,82931.0,0.286163]
[1744432569287,0.18126081,82933.0,82932.0,0.0012003]
[1744432570695,0.17,82933.0,82932.0,0.0012003]
[1744432571487,0.253235,82927.0,82923.0,0.045]
[1744432571686,0.18,82927.0,82923.0,0.045]
[1744432571899,0.18,82927.0,82926.0,0.0012003]
[1744432572081,0.18,82927.0,82926.0,0.2423783]
[1744432572979,0.18,82927.0,82926.0,0.0012003]
[1744432573791,0.18,82927.0,82926.0,0.25691915]
[1744432574011,0.012056,82945.0,82940.0,0.253191]
[1744432574177,0.16,82945.0,82944.0,0.0012003]
[1744432578047,0.0008444,82946.0,82945.0,0.25686415]
[1744432578202,0.0008444,82946.0,82945.0,0.30356415]
[1744432579229,0.0208444,82946.0,82945.0,0.30356415]
[1744432580189,0.0008444,82946.0,82945.0,0.30356415]
[1744432581356,0.1608444,82946.0,82945.0,0.30356415]
[1744432581725,0.1508444,82946.0,82945.0,0.30356415]
[1744432581927,0.1708444,82946.0,82945.0,0.30356415]
[1744432582162,0.0008444,82946.0,82945.0,0.30356415]
[1744432582605,0.1708444,82946.0,82945.0,0.30356415]
[1744432582784,0.1608444,82946.0,82945.0,0.30356415]
[1744432583591,0.1808444,82946.0,82945.0,0.30356415]
[1744432584358,0.0108444,82946.0,82945.0,0.30356415]
[1744432587567,0.0108444,82946.0,82945.0,0.25686415]
[1744432592116,0.0008444,82946.0,82945.0,0.25686415]
[1744432592531,0.0008444,82946.0,82945.0,0.42620569]
[1744432595442,0.0008444,82946.0,82945.0,0.81610569]
[1744432598192,0.0108444,82946.0,82945.0,0.47610569]
[1744432598895,0.0108444,82946.0,82945.0,0.241123]
[1744432599061,0.0108444,82946.0,82945.0,0.0012003]
[1744432599547,0.03335062,82946.0,82945.0,0.0012003]
[1744432600091,0.04460378,82946.0,82945.0,0.0012003]
[1744432602949,0.04460378,82946.0,82945.0,0.01574115]
[1744432602950,0.03460378,82946.0,82945.0,0.01574115]
[1744432603128,0.01209756,82946.0,82945.0,0.01574115]
[1744432603280,0.0008444,82946.0,82945.0,0.01574115]
[1744432604123,0.02338622,82946.0,82945.0,0.01574115]
[1744432605137,0.03465939,82946.0,82945.0,0.01574115]
[1744432605709,0.01211757,82946.0,82945.0,0.01574115]
[1744432606662,0.03466459,82946.0,82945.0,0.01574115]
[1744432607047,0.14466459,82946.0,82945.0,0.01574115]
[1744432608698,0.03466459,82946.0,82945.0,0.01574115]
[1744432608904,0.04466459,82946.0,82945.0,0.0012003]
[1744432609107,0.04466459,82946.0,82942.0,0.012056]
[1744432609311,0.05672059,82946.0,82945.0,0.0012003]
[1744432609535,0.03417357,82946.0,82945.0,0.0012003]
[1744432609728,0.05672146,82946.0,82945.0,0.0012003]
[1744432610578,0.253179,82945.0,82944.0,0.0012003]
[1744432610733,0.241129,82943.0,82942.0,0.00011322]
[1744432610968,0.42367689,82943.0,82942.0,0.00131352]
[1744432611169,0.18254789,82943.0,82942.0,0.00131352]
[1744432611826,0.19382106,82943.0,82942.0,0.00131352]
[1744432613364,0.61262106,82943.0,82942.0,0.00131352]
[1744432615885,0.45262106,82943.0,82942.0,0.00131352]
[1744432617765,0.63262106,82943.0,82942.0,0.00131352]
[1744432621089,0.87375006,82943.0,82942.0,0.00011322]
[1744432621288,0.87375006,82943.0,82942.0,0.00131352]
[1744432621525,0.87375006,82943.0,82942.0,0.24244552]
[1744432621526,0.63262106,82943.0,82942.0,0.24244552]
[1744432621719,0.45262106,82943.0,82942.0,0.30618637]
[1744432621918,0.43007317,82943.0,82942.0,0.30618637]
[1744432622793,0.4188,82943.0,82942.0,0.30618637]
[1744432623529,0.0008444,82946.0,82945.0,0.25686415]
[1744432623703,0.0008444,82946.0,82945.0,0.37770569]
[1744432623901,0.0008444,82946.0,82945.0,0.71770569]
[1744432626278,0.0008444,82946.0,82945.0,0.76320569]
[1744432626479,0.0008444,82946.0,82945.0,0.81010569]
[1744432626671,0.4188,82973.0,82969.0,0.01454085]
[1744432626672,0.0225306,82972.0,82969.0,0.01454085]
[1744432626795,0.0225306,82972.0,82971.0,0.25678915]
[1744432627195,0.4188,82973.0,82972.0,0.01454085]
[1744432627399,0.4188,82973.0,82972.0,0.01574115]
[1744432628465,0.02,82974.0,82973.0,0.64278315]
[1744432628669,0.000844,82975.0,82974.0,0.35574115]
[1744432628825,0.000844,82975.0,82974.0,0.47658269]
[1744432629235,0.00089061,82975.0,82974.0,0.47658269]
[1744432630124,0.00089061,82975.0,82974.0,0.01574115]
[1744432630470,0.46174161,82975.0,82974.0,0.0012003]
[1744432630662,0.46174161,82975.0,82970.0,0.2531]
[1744432630846,0.46174161,82975.0,82971.0,0.012052]
[1744432631247,0.26432304,82974.0,82973.0,0.0012003]
[1744432631617,0.26432304,82974.0,82971.0,0.0012003]
[1744432631618,0.241045,82972.0,82971.0,0.0012003]
[1744432631836,0.241045,82972.0,82968.0,0.0012003]
[1744432631837,0.172052,82972.0,82968.0,0.0012003]
[1744432632031,0.4188,82971.0,82968.0,0.2543083]
[1744432632282,0.4188,82971.0,82968.0,0.0132523]
[1744432632283,0.5788,82971.0,82968.0,0.0132523]
[1744432632654,0.5788,82971.0,82968.0,0.0012003]
[1744432632913,0.012052,82969.0,82968.0,0.0012003]
[1744432633053,0.241056,82968.0,82966.0,0.07333919]
[1744432633255,0.411056,82968.0,82966.0,0.07333919]
[1744432633456,0.03369885,82967.0,82966.0,0.07333919]
[1744432633656,0.75334039,82967.0,82966.0,0.07333919]
[1744432635143,0.253162,82951.0,82950.0,0.0012003]
[1744432635358,0.253162,82951.0,82948.0,0.05666592]
[1744432635359,0.241112,82949.0,82948.0,0.05666592]
[1744432635661,0.96075354,82949.0,82948.0,0.05666592]
[1744432635899,0.99445838,82949.0,82948.0,0.05666592]
[1744432636502,0.87361684,82949.0,82948.0,0.05666592]
[1744432636702,0.87366343,82949.0,82948.0,0.05666592]
[1744432637023,0.21375143,82949.0,82948.0,0.07240707]
[1744432637201,0.03375143,82949.0,82948.0,0.07240707]
[1744432637403,0.01127954,82949.0,82948.0,0.31352107]
[1744432637747,0.01127954,82949.0,82948.0,0.25685515]
[1744432637951,4.659e-05,82949.0,82948.0,0.25685515]
[1744432639099,4.659e-05,82949.0,82948.0,0.71769669]
[1744432639301,0.000844,82977.0,82974.0,0.25557985]
[1744432639560,0.00089093,82975.0,82974.0,0.01574115]
[1744432639722,0.01089093,82975.0,82974.0,0.01574115]
[1744432640441,0.00089093,82975.0,82974.0,0.01574115]
[1744432641046,0.01089093,82975.0,82974.0,0.01574115]
[1744432641822,0.00089093,82975.0,82974.0,0.01574115]
[1744432643758,0.00089093,82975.0,82974.0,0.0181512]
[1744432643952,0.00089093,82975.0,82974.0,0.01574115]
[1744432657869,0.00089093,82975.0,82974.0,0.15108503]
[1744432658117,0.00089093,82975.0,82974.0,0.14867496]
[1744432658909,0.00089093,82975.0,82974.0,0.48867496]
[1744432659116,0.00089093,82975.0,82974.0,0.53597496]
[1744432660327,0.00089093,82975.0,82974.0,0.58207496]
[1744432660645,0.00089093,82975.0,82974.0,0.58307496]
[1744432661270,0.000844,82977.0,82976.0,0.01674115]
[1744432661428,0.000844,82977.0,82976.0,0.52629205]
[1744432661634,0.000844,82977.0,82976.0,0.52388269]
[1744432662347,0.000844,82977.0,82976.0,0.67840269]
[1744432665377,0.000844,82977.0,82976.0,0.63210269]
[1744432669936,0.000844,82977.0,82976.0,0.68863951]
[1744432672018,0.000844,82977.0,82976.0,0.73543951]
[1744432672214,0.000844,82977.0,82976.0,0.67890269]
[1744432672414,0.000844,82977.0,82976.0,0.67790269]
[1744432674335,0.000844,82977.0,82976.0,0.63210269]
[1744432674534,0.000844,82977.0,82976.0,0.63192208]
[1744432679612,0.000844,82977.0,82976.0,0.6884801]
[1744432681047,0.000844,82977.0,82976.0,0.63192208]
[1744432685441,0.000844,82977.0,82976.0,0.72702208]
[1744432685650,0.4188,82994.0,82993.0,0.0012003]
[1744432685824,0.0008444,83009.0,82994.0,0.40114115]
[1744432686012,0.0008444,83009.0,82994.0,0.57068269]
[1744432686621,0.0008444,83009.0,82994.0,0.57168269]
[1744432687275,6e-07,82999.0,82998.0,0.001]
[1744432687493,4e-07,83001.0,83000.0,0.01674115]
[1744432687627,0.00046964,83001.0,83000.0,0.76635426]
[1744432687830,0.00046964,83001.0,83000.0,0.76394569]
[1744432689965,6.4e-07,83001.0,83000.0,0.76394569]
[1744432690185,4e-07,83009.0,83008.0,0.64638115]
[1744432690375,0.00014112,83009.0,83008.0,0.76722269]
[1744432691334,7.2e-07,83016.0,83015.0,0.35674115]
[1744432691458,7.2e-07,83016.0,83015.0,0.67932269]
[1744432692589,7.2e-07,83016.0,83015.0,0.68821595]
[1744432695807,7.2e-07,83016.0,83015.0,0.53417595]
[1744432696011,7.2e-07,83016.0,83015.0,0.6239751]
[1744432696452,7.2e-07,83016.0,83015.0,0.63851595]
[1744432698099,0.0008456,83026.0,83015.0,0.63851595]
[1744432698100,0.0008456,83026.0,83019.0,0.01574115]
[1744432698313,0.0008456,83026.0,83019.0,0.47658269]
[1744432700490,0.0008456,83026.0,83019.0,0.47758269]
[1744432701584,5.7e-07,83024.0,83023.0,0.59763815]
[1744432701798,5.7e-07,83024.0,83023.0,0.81447969]
[1744432701987,0.0004215,83043.0,83042.0,0.59658215]
[1744432702115,0.0004215,83043.0,83042.0,2.10990369]
[1744432702315,0.00056219,83043.0,83042.0,2.12171402]
[1744432703171,0.00056219,83043.0,83042.0,2.13095334]
[1744432704349,0.00056219,83043.0,83042.0,2.13195334]
[1744432704638,1.9e-07,83043.0,83042.0,2.18045334]
[1744432705887,1.9e-07,83043.0,83042.0,2.13095334]
[1744432706318,1.9e-07,83043.0,83042.0,2.11641249]
[1744432706479,1.9e-07,83043.0,83042.0,2.12051372]
[1744432706671,1.9e-07,83043.0,83042.0,1.75536284]
[1744432706880,1.9e-07,83043.0,83042.0,1.75532284]
[1744432707156,1.9e-07,83043.0,83042.0,1.75412254]
[1744432707344,1.9e-07,83043.0,83042.0,1.76866339]
[1744432707747,1.9e-07,83043.0,83042.0,2.10986369]
[1744432708454,1.9e-07,83043.0,83042.0,2.10866339]
[1744432708658,1.9e-07,83043.0,83042.0,1.76866339]
[1744432708869,1.9e-07,83043.0,83042.0,1.64902215]
[1744432709037,1.9e-07,83043.0,83042.0,1.633281]
[1744432709642,0.16000019,83043.0,83042.0,0.01574115]
[1744432709848,0.16000019,83043.0,83042.0,0.0012003]
[1744432710025,0.57880019,83043.0,83042.0,0.0012003]
[1744432710428,0.41880019,83043.0,83042.0,0.01574115]
[1744432711061,0.41880019,83043.0,83042.0,0.13658269]
[1744432713103,1.9e-07,83043.0,83042.0,0.47658269]
[1744432720254,1.9e-07,83043.0,83042.0,0.46084154]
[1744432720457,1.9e-07,83043.0,83042.0,0.47658269]
[1744432722060,1.9e-07,83043.0,83042.0,0.48410565]
[1744432724677,1.9e-07,83043.0,83042.0,0.53360565]
[1744432725561,1.9e-07,83046.0,83043.0,0.59288]
[1744432725766,1.9e-07,83046.0,83045.0,0.71841569]
[1744432726471,1.9e-07,83046.0,83045.0,0.72593865]
[1744432728055,1.9e-07,83046.0,83045.0,0.87837865]
[1744432730481,1.9e-07,83046.0,83045.0,0.88723325]
[1744432730687,0.0008436,83058.0,83045.0,0.88723325]
[1744432730688,8.9e-07,83058.0,83057.0,0.0012003]
[1744432730882,6.9e-07,83060.0,83059.0,0.59753315]
[1744432731104,6.9e-07,83060.0,83059.0,0.72589765]
[1744432731360,6.9e-07,83060.0,83059.0,0.82589765]
[1744432732130,0.002,83089.0,83076.0,0.2419433]
[1744432732294,0.00056196,83077.0,83076.0,0.91646569]
[1744432732698,0.00056196,83077.0,83076.0,0.93278936]
[1744432732906,9.6e-07,83077.0,83076.0,0.93278936]
[1744432733655,9.6e-07,83077.0,83076.0,0.93178936]
[1744432733910,9.6e-07,83077.0,83076.0,0.74448169]
[1744432734129,9.6e-07,83077.0,83076.0,0.8627078]
[1744432734331,9.6e-07,83077.0,83076.0,0.8615075]
[1744432734539,9.6e-07,83077.0,83076.0,0.87724865]
[1744432734667,9.6e-07,83077.0,83076.0,0.8627078]
[1744432735092,9.6e-07,83077.0,83076.0,0.87724865]
[1744432735301,9.6e-07,83077.0,83076.0,0.8627078]
[1744432735505,9.6e-07,83077.0,83076.0,0.87724865]
[1744432735902,9.6e-07,83077.0,83076.0,0.53724865]
[1744432738103,9.6e-07,83077.0,83076.0,0.41640711]
[1744432738505,9.6e-07,83077.0,83076.0,0.17446381]
[1744432738842,9.6e-07,83077.0,83076.0,0.15992296]
[1744432739019,9.6e-07,83077.0,83076.0,0.1536003]
[1744432739550,0.24074096,83077.0,83076.0,0.17446381]
[1744432739697,0.24074096,83077.0,83076.0,0.00752296]
[1744432739698,0.43924096,83077.0,83076.0,0.00752296]
[1744432739894,0.012037,83072.0,83069.0,0.012038]
[1744432740103,0.01,83072.0,83071.0,0.01574115]
[1744432740464,0.01,83072.0,83071.0,0.01454085]
[1744432740667,0.01,83072.0,83068.0,0.00752296]
[1744432740668,0.252794,83071.0,83070.0,0.0012003]
[1744432740940,0.432794,83071.0,83070.0,0.0012003]
[1744432741246,0.432794,83071.0,83064.0,0.07352586]
[1744432741247,0.240775,83065.0,83064.0,0.07352586]
[1744432741439,0.468675,83065.0,83064.0,0.07352586]
[1744432741940,0.468675,83065.0,83064.0,0.07472616]
[1744432742516,0.2279,83065.0,83064.0,0.33004501]
[1744432742732,0.0479,83065.0,83064.0,0.25651915]
[1744432743694,0.0579,83065.0,83064.0,0.0012003]
[1744432743953,0.298675,83065.0,83064.0,0.0012003]
[1744432744728,0.01204,83054.0,83052.0,0.0012003]
[1744432744953,0.02,83054.0,83053.0,0.0132403]
[1744432746284,0.02,83054.0,83053.0,0.0012003]
[1744432746401,0.02,83054.0,83051.0,0.252853]
[1744432746605,0.02,83054.0,83053.0,0.0012003]
[1744432751840,0.240833,83045.0,83039.0,0.05656523]
[1744432752057,0.192041,83045.0,83044.0,0.0012003]
[1744432752262,0.18,83045.0,83044.0,0.0012003]
[1744432753122,0.18,83045.0,83044.0,0.2420363]
[1744432753252,0.18,83045.0,83044.0,0.242176]
[1744432753912,0.18,83045.0,83044.0,0.00134]
[1744432754567,0.467033,83045.0,83044.0,0.0001397]
[1744432754763,0.467033,83045.0,83044.0,0.00134]
[1744432754764,0.2262,83045.0,83044.0,0.00134]
[1744432754992,0.467033,83045.0,83044.0,0.00134]
[1744432756566,0.467033,83045.0,83044.0,0.0001397]
[1744432756790,0.457033,83045.0,83044.0,0.00134]
[1744432758006,0.447033,83045.0,83044.0,0.00134]
[1744432759994,0.447033,83045.0,83044.0,0.0001397]
[1744432760189,0.447033,83045.0,83044.0,0.00134]
[1744432760389,0.447033,83045.0,83044.0,0.0001397]
[1744432760808,0.447033,83045.0,83044.0,0.00134]
[1744432761189,0.447033,83045.0,83044.0,0.0001397]
[1744432761432,0.447033,83045.0,83044.0,0.00134]
[1744432762192,0.2062,83045.0,83044.0,0.00134]
[1744432762395,0.240815,83052.0,83044.0,0.00134]
[1744432762396,0.0485,83066.0,83065.0,0.240775]
[1744432762614,0.17,83066.0,83063.0,0.252817]
[1744432762847,0.17,83066.0,83063.0,0.012039]
[1744432762996,0.17,83066.0,83063.0,0.252817]
[1744432763776,0.17,83066.0,83065.0,0.240775]
[1744432763965,0.17,83066.0,83065.0,0.2419753]
[1744432764391,0.057036,83078.0,83075.0,0.252783]
[1744432764590,0.0128788,83082.0,83081.0,0.240728]
[1744432764591,0.0008428,83082.0,83081.0,0.240728]
[1744432764796,0.1608428,83082.0,83081.0,0.2419283]
[1744432765814,0.0008428,83082.0,83081.0,0.25646915]
[1744432766279,0.0008428,83082.0,83081.0,0.37731069]
[1744432767846,0.0008428,83082.0,83081.0,0.3848306]
[1744432768414,0.0008428,83082.0,83081.0,0.37731069]
[1744432768834,0.0004217,83100.0,83081.0,0.37731069]
[1744432768835,0.0004217,83100.0,83097.0,0.0012003]
[1744432768989,0.1904217,83100.0,83097.0,0.2418823]
[1744432769196,0.1904217,83100.0,83097.0,0.0012003]
[1744432769978,0.1904217,83100.0,83098.0,0.240676]
[1744432770135,0.1904217,83100.0,83099.0,0.01574115]
[1744432774522,0.1904217,83100.0,83099.0,0.0012003]
[1744432776119,0.1904217,83100.0,83099.0,0.2418763]
[1744432776959,0.1904217,83100.0,83099.0,0.0012003]
[1744432780318,0.240676,83099.0,83098.0,0.0012003]